[Event "Live Chess"]
[Site "Chess.com"]
[Date "2024.06.01"]
[Round "-"]
[White "WilliamofOrange16th"]
[Black "Grace6363"]
[Result "1-0"]
[WhiteElo "1983"]
[BlackElo "1151"]
[TimeControl "300"]
[EndTime "11:54:26 PDT"]
[Termination "WilliamofOrange16th won by resignation"]

1. e4 {[%clk 0:04:57.6]} 1... c5 {[%clk 0:04:58.6]} 2. Nc3 {[%clk 0:04:56]} 2...
Nc6 {[%clk 0:04:57.8]} 3. f4 {[%clk 0:04:55.3]} 3... d6 {[%clk 0:04:54.8]} 4.
Nf3 {[%clk 0:04:54.8]} 4... Bg4 {[%clk 0:04:53.9]} 5. h3 {[%clk 0:04:52]} 5...
Bxf3 {[%clk 0:04:52.3]} 6. Qxf3 {[%clk 0:04:51.9]} 6... Nd4 {[%clk 0:04:51.6]}
7. Qd1 {[%clk 0:04:51.1]} 7... Qb6 {[%clk 0:04:48]} 8. Bc4 {[%clk 0:04:48.5]}
8... e6 {[%clk 0:04:45.7]} 9. O-O {[%clk 0:04:37.5]} 9... Be7 {[%clk 0:04:44.5]}
10. d3 {[%clk 0:04:35.1]} 10... Bh4 {[%clk 0:04:41]} 11. Na4 {[%clk 0:04:28.1]}
11... Qd8 {[%clk 0:04:35.2]} 12. Qg4 {[%clk 0:04:19.3]} 12... b5 {[%clk
0:04:32.6]} 13. Bxb5+ {[%clk 0:04:16.9]} 13... Nxb5 {[%clk 0:04:31.2]} 14. Qxg7
{[%clk 0:04:15.3]} 14... Qf6 {[%clk 0:04:21]} 15. Qxf6 {[%clk 0:04:13.3]} 15...
Bxf6 {[%clk 0:04:19.9]} 16. c3 {[%clk 0:04:06.1]} 16... Ne7 {[%clk 0:04:12.7]}
17. Be3 {[%clk 0:04:05.2]} 17... Rc8 {[%clk 0:04:05.5]} 18. g4 {[%clk
0:04:01.7]} 18... Bh4 {[%clk 0:04:03.1]} 19. Kg2 {[%clk 0:03:59.6]} 19... Ng6
{[%clk 0:03:59.9]} 20. Rad1 {[%clk 0:03:55.3]} 20... f6 {[%clk 0:03:52.3]} 21.
Rb1 {[%clk 0:03:43.9]} 21... e5 {[%clk 0:03:46.8]} 22. f5 {[%clk 0:03:41.3]}
22... Nf4+ {[%clk 0:03:44.8]} 23. Bxf4 {[%clk 0:03:40.7]} 23... exf4 {[%clk
0:03:44.1]} 24. Rxf4 {[%clk 0:03:38.8]} 24... Bg5 {[%clk 0:03:43]} 25. Rf3
{[%clk 0:03:36.2]} 25... h5 {[%clk 0:03:42.4]} 26. gxh5 {[%clk 0:03:29.2]} 26...
Rxh5 {[%clk 0:03:41.5]} 27. b4 {[%clk 0:03:28.3]} 27... a6 {[%clk 0:03:35.1]}
28. bxc5 {[%clk 0:03:26]} 28... dxc5 {[%clk 0:03:34.1]} 29. Rb3 {[%clk 0:03:18]}
29... Rc7 {[%clk 0:03:32.5]} 30. Nb6 {[%clk 0:03:16.6]} 30... Rch7 {[%clk
0:03:29.7]} 31. Nd5 {[%clk 0:03:15.5]} 31... c4 {[%clk 0:03:12.4]} 32. dxc4
{[%clk 0:03:14.1]} 32... Nd6 {[%clk 0:03:09]} 33. Rb8+ {[%clk 0:03:01.5]} 33...
Kd7 {[%clk 0:03:07.5]} 34. c5 {[%clk 0:02:49]} 34... Nxe4 {[%clk 0:03:05.9]} 35.
Rd3 {[%clk 0:02:10.6]} 35... Nxc5 {[%clk 0:02:46.7]} 36. Nxf6+ {[%clk
0:02:09.4]} 36... Kc7 {[%clk 0:02:43.4]} 37. Nxh7 {[%clk 0:02:02.4]} 37... Nxd3
{[%clk 0:02:40.3]} 38. Rg8 {[%clk 0:01:55.8]} 38... Rxh7 {[%clk 0:02:37]} 39.
Rxg5 {[%clk 0:01:55]} 39... a5 {[%clk 0:02:12.6]} 40. f6 {[%clk 0:01:53.6]}
40... Kd7 {[%clk 0:02:10.3]} 41. Rg7+ {[%clk 0:01:48.3]} 41... Ke6 {[%clk
0:01:46]} 42. Rxh7 {[%clk 0:01:44.4]} 42... Kxf6 {[%clk 0:01:45.1]} 43. Ra7
{[%clk 0:01:43]} 43... Nf4+ {[%clk 0:01:41.6]} 44. Kg3 {[%clk 0:01:40.8]} 44...
Ne2+ {[%clk 0:01:39.6]} 45. Kg4 {[%clk 0:01:39.7]} 45... Nxc3 {[%clk 0:01:38.6]}
46. Rxa5 {[%clk 0:01:38.9]} 46... Ne4 {[%clk 0:01:33.1]} 47. Ra6+ {[%clk
0:01:32]} 47... Kg7 {[%clk 0:01:29.6]} 48. a4 {[%clk 0:01:28.7]} 48... Nc5
{[%clk 0:01:26.7]} 49. Ra7+ {[%clk 0:01:27.4]} 49... Kf6 {[%clk 0:01:24.8]} 50.
a5 {[%clk 0:01:27.3]} 50... Ne4 {[%clk 0:01:18.7]} 51. a6 {[%clk 0:01:25.7]}
51... Nf2+ {[%clk 0:01:17.6]} 52. Kg3 {[%clk 0:01:24.2]} 52... Ne4+ {[%clk
0:01:16.5]} 53. Kg2 {[%clk 0:01:23.2]} 53... Nc5 {[%clk 0:01:14.3]} 54. Ra8
{[%clk 0:01:20.2]} 54... Nd7 {[%clk 0:01:06.7]} 55. a7 {[%clk 0:01:17.7]} 55...
Nb6 {[%clk 0:01:05.5]} 56. Rf8+ {[%clk 0:01:15.6]} 56... Ke7 {[%clk 0:01:01.7]}
57. a8=Q {[%clk 0:01:15.5]} 57... Nxa8 {[%clk 0:01:00.8]} 58. Rxa8 {[%clk
0:01:14.5]} 1-0

[Event "Live Chess"]
[Site "Chess.com"]
[Date "2024.06.01"]
[Round "-"]
[White "SavagePawn7"]
[Black "JohanKjeldahl"]
[Result "0-1"]
[WhiteElo "683"]
[BlackElo "1817"]
[TimeControl "300"]
[EndTime "11:54:26 PDT"]
[Termination "JohanKjeldahl won by resignation"]

1. e4 {[%clk 0:04:55.5]} 1... c5 {[%clk 0:04:57.1]} 2. d4 {[%clk 0:04:54]} 2...
cxd4 {[%clk 0:04:55.5]} 3. c3 {[%clk 0:04:52.8]} 3... dxc3 {[%clk 0:04:53.4]} 4.
Nxc3 {[%clk 0:04:51.4]} 4... Nc6 {[%clk 0:04:52.2]} 5. Nf3 {[%clk 0:04:49.8]}
5... e6 {[%clk 0:04:51.2]} 6. Bc4 {[%clk 0:04:46.1]} 6... a6 {[%clk 0:04:50.1]}
7. O-O {[%clk 0:04:36.6]} 7... b5 {[%clk 0:04:48.3]} 8. Bb3 {[%clk 0:04:34.9]}
8... Bb7 {[%clk 0:04:47.3]} 9. Qe2 {[%clk 0:04:31.5]} 9... Be7 {[%clk 0:04:45]}
10. Rd1 {[%clk 0:04:24.4]} 10... Qc7 {[%clk 0:04:39.9]} 11. g3 {[%clk
0:04:01.2]} 11... Nf6 {[%clk 0:04:34.4]} 12. Bf4 {[%clk 0:03:51.1]} 12... e5
{[%clk 0:04:33.2]} 13. Bg5 {[%clk 0:03:37.2]} 13... O-O {[%clk 0:04:30.6]} 14.
Bxf6 {[%clk 0:03:35.9]} 14... Bxf6 {[%clk 0:04:27.1]} 15. Rac1 {[%clk
0:03:28.8]} 15... Qd8 {[%clk 0:04:17.9]} 16. Nd5 {[%clk 0:03:25.9]} 16... Nd4
{[%clk 0:04:11.7]} 17. Nxd4 {[%clk 0:03:16.8]} 17... Bxd5 {[%clk 0:04:06.8]} 18.
exd5 {[%clk 0:03:13.2]} 18... exd4 {[%clk 0:04:05.6]} 19. Rd3 {[%clk 0:02:54.5]}
19... Qb6 {[%clk 0:04:01.2]} 20. Qg4 {[%clk 0:02:37.1]} 20... d6 {[%clk
0:03:53.7]} 21. Rcd1 {[%clk 0:02:33.1]} 21... Rfe8 {[%clk 0:03:47.7]} 22. Rf3
{[%clk 0:02:26.4]} 22... Qd8 {[%clk 0:03:41.5]} 23. Kg2 {[%clk 0:02:19.1]} 23...
Ra7 {[%clk 0:03:28.9]} 24. Bc2 {[%clk 0:02:13.1]} 24... Be5 {[%clk 0:02:44.9]}
25. Rdd3 {[%clk 0:01:35.1]} 25... g6 {[%clk 0:02:41.6]} 26. Rxf7 {[%clk
0:01:03.6]} 26... Rxf7 {[%clk 0:02:37.7]} 27. Qh4 {[%clk 0:00:55.1]} 27... Qf6
{[%clk 0:02:34]} 28. Qxf6 {[%clk 0:00:50.4]} 28... Rxf6 {[%clk 0:02:31.7]} 0-1

[Event "Live Chess"]
[Site "Chess.com"]
[Date "2024.06.01"]
[Round "-"]
[White "Duke_of_Bebington"]
[Black "mrsmarple1968"]
[Result "0-1"]
[WhiteElo "1599"]
[BlackElo "1797"]
[TimeControl "300"]
[EndTime "11:54:29 PDT"]
[Termination "mrsmarple1968 won by resignation"]

1. d4 {[%clk 0:04:58.1]} 1... d5 {[%clk 0:04:58.3]} 2. Bf4 {[%clk 0:04:57.2]}
2... c6 {[%clk 0:04:55.4]} 3. Nf3 {[%clk 0:04:53.7]} 3... Nf6 {[%clk 0:04:52.1]}
4. e3 {[%clk 0:04:50.5]} 4... e6 {[%clk 0:04:50.1]} 5. Bd3 {[%clk 0:04:44.3]}
5... Bd6 {[%clk 0:04:41.3]} 6. Bxd6 {[%clk 0:04:30]} 6... Qxd6 {[%clk
0:04:38.1]} 7. O-O {[%clk 0:04:25]} 7... O-O {[%clk 0:04:35.5]} 8. c4 {[%clk
0:04:18.9]} 8... Nbd7 {[%clk 0:04:31.7]} 9. c5 {[%clk 0:04:17.3]} 9... Qc7
{[%clk 0:04:26]} 10. b4 {[%clk 0:04:13.9]} 10... e5 {[%clk 0:04:20.6]} 11. dxe5
{[%clk 0:03:59.1]} 11... Nxe5 {[%clk 0:04:18.3]} 12. Nxe5 {[%clk 0:03:56.7]}
12... Qxe5 {[%clk 0:04:16]} 13. Nc3 {[%clk 0:03:56.3]} 13... Qxc3 {[%clk
0:04:12]} 0-1

[Event "Live Chess"]
[Site "Chess.com"]
[Date "2024.06.01"]
[Round "-"]
[White "nigelst"]
[Black "Nazarenko_vital"]
[Result "0-1"]
[WhiteElo "1648"]
[BlackElo "1483"]
[TimeControl "300"]
[EndTime "11:54:38 PDT"]
[Termination "Nazarenko_vital won by checkmate"]

1. e4 {[%clk 0:04:58.3]} 1... d5 {[%clk 0:04:58.9]} 2. exd5 {[%clk 0:04:54.8]}
2... Qxd5 {[%clk 0:04:57.8]} 3. Nc3 {[%clk 0:04:53]} 3... Qa5 {[%clk 0:04:57.3]}
4. d4 {[%clk 0:04:51.3]} 4... Nf6 {[%clk 0:04:56.7]} 5. Nf3 {[%clk 0:04:49.2]}
5... Bg4 {[%clk 0:04:56.2]} 6. h3 {[%clk 0:04:48.6]} 6... Bh5 {[%clk 0:04:53.8]}
7. g4 {[%clk 0:04:48]} 7... Bg6 {[%clk 0:04:52.3]} 8. Ne5 {[%clk 0:04:47.5]}
8... c6 {[%clk 0:04:49.4]} 9. h4 {[%clk 0:04:46.5]} 9... Nd5 {[%clk 0:04:33.6]}
10. Bd2 {[%clk 0:04:40.9]} 10... Qb6 {[%clk 0:04:00.1]} 11. Nxd5 {[%clk
0:04:24.7]} 11... cxd5 {[%clk 0:03:56]} 12. Be3 {[%clk 0:04:23]} 12... Nc6
{[%clk 0:03:51.2]} 13. h5 {[%clk 0:04:20.6]} 13... Be4 {[%clk 0:03:47.5]} 14. f3
{[%clk 0:04:19.4]} 14... Nxe5 {[%clk 0:03:43.6]} 15. fxe4 {[%clk 0:04:14.8]}
15... dxe4 {[%clk 0:03:39.6]} 16. Qe2 {[%clk 0:04:06.3]} 16... Nf3+ {[%clk
0:03:35.9]} 17. Kf2 {[%clk 0:04:03.7]} 17... Nxd4 {[%clk 0:03:32.1]} 18. Qc4
{[%clk 0:03:56.2]} 18... e5 {[%clk 0:03:28.1]} 19. c3 {[%clk 0:03:51.9]} 19...
Qxb2+ {[%clk 0:03:24.2]} 20. Kg3 {[%clk 0:03:47.9]} 20... Qxa1 {[%clk
0:03:20.9]} 21. cxd4 {[%clk 0:03:39.2]} 21... Bd6 {[%clk 0:03:17]} 22. Qb5+
{[%clk 0:03:28.7]} 22... Kf8 {[%clk 0:03:16.6]} 23. d5 {[%clk 0:03:25.8]} 23...
Qe1+ {[%clk 0:03:07.9]} 24. Bf2 {[%clk 0:03:22.4]} 24... Qc3+ {[%clk 0:03:07]}
25. Kh4 {[%clk 0:03:20.6]} 25... g5+ {[%clk 0:03:02.1]} 26. hxg6 {[%clk
0:03:16]} 26... hxg6+ {[%clk 0:02:57.2]} 27. Kg5 {[%clk 0:03:15.1]} 27... Be7#
{[%clk 0:02:51.7]} 0-1

[Event "Live Chess"]
[Site "Chess.com"]
[Date "2024.06.01"]
[Round "-"]
[White "NottheBishopSacrifice"]
[Black "cymbalshift"]
[Result "0-1"]
[WhiteElo "2274"]
[BlackElo "1793"]
[TimeControl "300"]
[EndTime "11:54:44 PDT"]
[Termination "cymbalshift won by checkmate"]

1. g3 {[%clk 0:04:59]} 1... Nf6 {[%clk 0:04:56.9]} 2. Bg2 {[%clk 0:04:58.9]}
2... d6 {[%clk 0:04:56]} 3. Nf3 {[%clk 0:04:58.3]} 3... g6 {[%clk 0:04:55.7]} 4.
O-O {[%clk 0:04:57]} 4... Bg7 {[%clk 0:04:55.6]} 5. d4 {[%clk 0:04:56.2]} 5...
O-O {[%clk 0:04:54.2]} 6. c4 {[%clk 0:04:55.8]} 6... c6 {[%clk 0:04:53.3]} 7.
Nc3 {[%clk 0:04:55.3]} 7... Nbd7 {[%clk 0:04:52.5]} 8. e4 {[%clk 0:04:55]} 8...
e5 {[%clk 0:04:51.1]} 9. d5 {[%clk 0:04:53.7]} 9... c5 {[%clk 0:04:50]} 10. Ne1
{[%clk 0:04:51.9]} 10... a6 {[%clk 0:04:48.9]} 11. Nd3 {[%clk 0:04:51.1]} 11...
Ne8 {[%clk 0:04:45]} 12. f4 {[%clk 0:04:49.6]} 12... exf4 {[%clk 0:04:39.8]} 13.
Bxf4 {[%clk 0:04:47.8]} 13... Bd4+ {[%clk 0:04:38.6]} 14. Kh1 {[%clk 0:04:46.5]}
14... Ne5 {[%clk 0:04:28.7]} 15. Nxe5 {[%clk 0:04:45]} 15... dxe5 {[%clk
0:04:27.4]} 16. Bh6 {[%clk 0:04:44.1]} 16... Ng7 {[%clk 0:04:25.2]} 17. Ne2
{[%clk 0:04:43.2]} 17... Bg4 {[%clk 0:04:23.1]} 18. Qd3 {[%clk 0:04:41.1]} 18...
Bxe2 {[%clk 0:04:13.8]} 19. Qxe2 {[%clk 0:04:41]} 19... f5 {[%clk 0:04:12.8]}
20. exf5 {[%clk 0:04:38.8]} 20... gxf5 {[%clk 0:04:12.7]} 21. Rad1 {[%clk
0:04:35.8]} 21... Qf6 {[%clk 0:04:08]} 22. Bc1 {[%clk 0:04:30.1]} 22... Rae8
{[%clk 0:03:59.7]} 23. b3 {[%clk 0:04:27.5]} 23... h5 {[%clk 0:03:55.8]} 24. Bf3
{[%clk 0:04:24.3]} 24... h4 {[%clk 0:03:53.3]} 25. gxh4 {[%clk 0:04:20]} 25...
Qxh4 {[%clk 0:03:47.5]} 26. Rg1 {[%clk 0:04:17.6]} 26... Kh8 {[%clk 0:03:42.2]}
27. Bg5 {[%clk 0:04:15.2]} 27... Qh7 {[%clk 0:03:28.4]} 28. Rg3 {[%clk
0:04:11.6]} 28... e4 {[%clk 0:03:24.8]} 29. Bg2 {[%clk 0:04:10.3]} 29... Kg8
{[%clk 0:03:07.5]} 30. Rh3 {[%clk 0:04:09.1]} 30... Qg6 {[%clk 0:03:05.3]} 31.
Bf4 {[%clk 0:04:08.5]} 31... Kf7 {[%clk 0:02:57]} 32. Rh6 {[%clk 0:03:59.3]}
32... Qg4 {[%clk 0:02:47.2]} 33. Qf1 {[%clk 0:03:56.2]} 33... Rh8 {[%clk
0:02:37.8]} 34. h3 {[%clk 0:03:24.9]} 34... Rxh6 {[%clk 0:02:26.2]} 35. Bxh6
{[%clk 0:03:24.5]} 35... Qg3 {[%clk 0:02:17.3]} 36. Bf4 {[%clk 0:03:22.9]} 36...
Qg6 {[%clk 0:02:10.4]} 37. d6 {[%clk 0:03:21.5]} 37... Nh5 {[%clk 0:02:07.6]}
38. d7 {[%clk 0:03:19.5]} 38... Rd8 {[%clk 0:02:04.8]} 39. Bxe4 {[%clk
0:03:16.8]} 39... Rxd7 {[%clk 0:01:53.4]} 40. Bd5+ {[%clk 0:03:14.4]} 40... Kf8
{[%clk 0:01:45.6]} 41. Rd2 {[%clk 0:03:13.1]} 41... Nxf4 {[%clk 0:01:27.9]} 42.
Bf3 {[%clk 0:03:09.5]} 42... Rg7 {[%clk 0:01:19.9]} 43. Kh2 {[%clk 0:03:01.4]}
43... Qg3+ {[%clk 0:01:17.2]} 44. Kh1 {[%clk 0:02:59.5]} 44... Rh7 {[%clk
0:01:09.4]} 45. Rh2 {[%clk 0:02:49.2]} 45... Nxh3 {[%clk 0:00:56.6]} 46. Bg2
{[%clk 0:02:34.6]} 46... Nf2+ {[%clk 0:00:52.5]} 47. Qxf2 {[%clk 0:02:33.7]}
47... Qxh2# {[%clk 0:00:50.9]} 0-1

[Event "Live Chess"]
[Site "Chess.com"]
[Date "2024.06.01"]
[Round "-"]
[White "Andysav3"]
[Black "TJ-W"]
[Result "1-0"]
[WhiteElo "1878"]
[BlackElo "1573"]
[TimeControl "300"]
[EndTime "11:55:28 PDT"]
[Termination "Andysav3 won by resignation"]

1. e4 {[%clk 0:04:58.1]} 1... e5 {[%clk 0:04:58.3]} 2. Nf3 {[%clk 0:04:56.6]}
2... Nc6 {[%clk 0:04:54]} 3. d4 {[%clk 0:04:54.6]} 3... exd4 {[%clk 0:04:52.5]}
4. Bc4 {[%clk 0:04:53]} 4... g6 {[%clk 0:04:47.7]} 5. Nxd4 {[%clk 0:04:42.8]}
5... Bg7 {[%clk 0:04:43.7]} 6. Be3 {[%clk 0:04:27.9]} 6... Nxd4 {[%clk
0:04:38.4]} 7. Bxd4 {[%clk 0:04:26.5]} 7... Nf6 {[%clk 0:04:37.3]} 8. Nc3 {[%clk
0:04:21.3]} 8... O-O {[%clk 0:04:33.8]} 9. O-O {[%clk 0:04:19.3]} 9... Re8
{[%clk 0:04:30.8]} 10. f3 {[%clk 0:04:06.2]} 10... c6 {[%clk 0:04:21]} 11. a4
{[%clk 0:03:59.3]} 11... d5 {[%clk 0:04:18.7]} 12. exd5 {[%clk 0:03:51.5]} 12...
cxd5 {[%clk 0:04:15.4]} 13. Bb3 {[%clk 0:03:37.2]} 13... Bf5 {[%clk 0:03:57.4]}
14. Qd2 {[%clk 0:03:34.7]} 14... Qd6 {[%clk 0:03:33]} 15. Rad1 {[%clk
0:03:27.8]} 15... a6 {[%clk 0:03:29.3]} 16. a5 {[%clk 0:03:05.4]} 16... Rad8
{[%clk 0:03:25.1]} 17. Bb6 {[%clk 0:03:03.7]} 17... Rc8 {[%clk 0:03:12.8]} 18.
Nxd5 {[%clk 0:02:55.5]} 18... Nxd5 {[%clk 0:03:08.7]} 19. Bxd5 {[%clk
0:02:53.6]} 19... Bxb2 {[%clk 0:03:00.8]} 20. Bxf7+ {[%clk 0:02:49.8]} 1-0

[Event "Live Chess"]
[Site "Chess.com"]
[Date "2024.06.01"]
[Round "-"]
[White "TigerTank70"]
[Black "Ferrarifan27"]
[Result "0-1"]
[WhiteElo "2193"]
[BlackElo "2064"]
[TimeControl "300"]
[EndTime "11:55:32 PDT"]
[Termination "Ferrarifan27 won by checkmate"]

1. e4 {[%clk 0:04:56.5]} 1... e5 {[%clk 0:04:58.3]} 2. Nf3 {[%clk 0:04:55.1]}
2... Nc6 {[%clk 0:04:57.5]} 3. Bc4 {[%clk 0:04:53.4]} 3... Bc5 {[%clk
0:04:55.3]} 4. b4 {[%clk 0:04:53.1]} 4... Bxb4 {[%clk 0:04:54.2]} 5. c3 {[%clk
0:04:52.7]} 5... Ba5 {[%clk 0:04:52.8]} 6. O-O {[%clk 0:04:51.7]} 6... d6 {[%clk
0:04:47]} 7. d4 {[%clk 0:04:50.8]} 7... exd4 {[%clk 0:04:45.6]} 8. cxd4 {[%clk
0:04:30.8]} 8... Bg4 {[%clk 0:04:40]} 9. Qb3 {[%clk 0:04:05.5]} 9... Qd7 {[%clk
0:04:33.2]} 10. Bxf7+ {[%clk 0:03:46.7]} 10... Qxf7 {[%clk 0:04:29.3]} 11. Qxb7
{[%clk 0:03:45.2]} 11... Rb8 {[%clk 0:03:56.4]} 12. Qxc6+ {[%clk 0:03:43.4]}
12... Bd7 {[%clk 0:03:53.7]} 13. Qa6 {[%clk 0:03:36.3]} 13... Bb6 {[%clk
0:03:35]} 14. Nc3 {[%clk 0:03:33.8]} 14... Nf6 {[%clk 0:03:32.6]} 15. e5 {[%clk
0:03:27.7]} 15... dxe5 {[%clk 0:03:20.7]} 16. Nxe5 {[%clk 0:03:26.3]} 16... Qe6
{[%clk 0:03:14.9]} 17. Nxd7 {[%clk 0:03:08.3]} 17... Qxd7 {[%clk 0:03:04.6]} 18.
Re1+ {[%clk 0:03:02.6]} 18... Kd8 {[%clk 0:03:03.3]} 19. Bg5 {[%clk 0:02:49]}
19... Re8 {[%clk 0:03:00.2]} 20. d5 {[%clk 0:02:23]} 20... h6 {[%clk 0:02:37]}
21. Bxf6+ {[%clk 0:02:12.2]} 21... gxf6 {[%clk 0:02:36.9]} 22. Ne4 {[%clk
0:02:07.3]} 22... Qf5 {[%clk 0:02:26]} 23. Qe2 {[%clk 0:01:20.6]} 23... Ba5
{[%clk 0:02:07]} 24. d6 {[%clk 0:00:55.8]} 24... Bxe1 {[%clk 0:01:40.8]} 25.
dxc7+ {[%clk 0:00:52.5]} 25... Kxc7 {[%clk 0:01:39.8]} 26. Qc4+ {[%clk
0:00:47.1]} 26... Kd7 {[%clk 0:01:20.5]} 27. Rd1+ {[%clk 0:00:41.7]} 27... Ke7
{[%clk 0:01:10.9]} 28. Rxe1 {[%clk 0:00:16.9]} 28... Kf8 {[%clk 0:01:04.3]} 29.
f3 {[%clk 0:00:16]} 29... Qb5 {[%clk 0:00:41]} 30. Qc3 {[%clk 0:00:10.9]} 30...
Qb6+ {[%clk 0:00:31.7]} 31. Kh1 {[%clk 0:00:10.3]} 31... Kf7 {[%clk 0:00:30.7]}
32. Rd1 {[%clk 0:00:08.6]} 32... Rbd8 {[%clk 0:00:28.7]} 33. Qc4+ {[%clk
0:00:07.9]} 33... Kf8 {[%clk 0:00:26.7]} 34. Rc1 {[%clk 0:00:05]} 34... Rc8
{[%clk 0:00:24.1]} 35. Nc5 {[%clk 0:00:04.2]} 35... Rxc5 {[%clk 0:00:21.9]} 36.
Qxc5+ {[%clk 0:00:03.2]} 36... Qxc5 {[%clk 0:00:21.3]} 37. Rxc5 {[%clk
0:00:03.1]} 37... Re1# {[%clk 0:00:20.3]} 0-1

[Event "Live Chess"]
[Site "Chess.com"]
[Date "2024.06.01"]
[Round "-"]
[White "blunderabit"]
[Black "dl_chess"]
[Result "1-0"]
[WhiteElo "1811"]
[BlackElo "1171"]
[TimeControl "300"]
[EndTime "11:56:10 PDT"]
[Termination "blunderabit won on time"]

1. e4 {[%clk 0:04:55.7]} 1... e6 {[%clk 0:04:58.5]} 2. d4 {[%clk 0:04:53]} 2...
d5 {[%clk 0:04:57.6]} 3. Bd3 {[%clk 0:04:51.2]} 3... c5 {[%clk 0:04:53]} 4. c3
{[%clk 0:04:46.2]} 4... Nc6 {[%clk 0:04:50.6]} 5. Nf3 {[%clk 0:04:41.5]} 5...
Nf6 {[%clk 0:04:26.7]} 6. e5 {[%clk 0:04:39]} 6... Nd7 {[%clk 0:04:25.5]} 7. a3
{[%clk 0:04:30.7]} 7... a6 {[%clk 0:04:11.3]} 8. b4 {[%clk 0:04:26.4]} 8... c4
{[%clk 0:04:06]} 9. Bc2 {[%clk 0:04:25.1]} 9... f6 {[%clk 0:04:04]} 10. exf6
{[%clk 0:04:19.7]} 10... Nxf6 {[%clk 0:04:02]} 11. O-O {[%clk 0:04:18.2]} 11...
Be7 {[%clk 0:03:58.1]} 12. h3 {[%clk 0:04:09.7]} 12... O-O {[%clk 0:03:56.6]}
13. Bf4 {[%clk 0:04:05]} 13... Ne4 {[%clk 0:03:43.4]} 14. Bh2 {[%clk 0:04:02.7]}
14... Bf6 {[%clk 0:03:28.1]} 15. Re1 {[%clk 0:03:54.1]} 15... Ne7 {[%clk
0:03:11]} 16. Bxe4 {[%clk 0:03:50.7]} 16... dxe4 {[%clk 0:03:09]} 17. Rxe4
{[%clk 0:03:50.1]} 17... Nd5 {[%clk 0:02:58.9]} 18. Qe1 {[%clk 0:03:41.1]} 18...
Qb6 {[%clk 0:02:47]} 19. a4 {[%clk 0:03:35.6]} 19... Bd7 {[%clk 0:02:22.6]} 20.
Ne5 {[%clk 0:03:16.5]} 20... Bxe5 {[%clk 0:02:14.6]} 21. Bxe5 {[%clk 0:03:14]}
21... Rf7 {[%clk 0:01:57.6]} 22. Rg4 {[%clk 0:03:04.3]} 22... Raf8 {[%clk
0:01:49.7]} 23. f3 {[%clk 0:03:01.3]} 23... Qd8 {[%clk 0:01:32.2]} 24. Na3
{[%clk 0:02:38.2]} 24... h5 {[%clk 0:01:15.1]} 25. Re4 {[%clk 0:02:25.6]} 25...
Nf4 {[%clk 0:01:06.9]} 26. Bxf4 {[%clk 0:02:19.2]} 26... Rxf4 {[%clk 0:01:05.5]}
27. Nxc4 {[%clk 0:02:17.5]} 27... Qg5 {[%clk 0:00:43.8]} 28. Qe3 {[%clk
0:01:59.6]} 28... Qg3 {[%clk 0:00:27.1]} 29. Rxf4 {[%clk 0:01:53.8]} 29... Rxf4
{[%clk 0:00:24.2]} 30. Rf1 {[%clk 0:01:51.7]} 30... h4 {[%clk 0:00:13.1]} 31.
Qe5 {[%clk 0:01:37.6]} 31... Rf5 {[%clk 0:00:02.3]} 32. Qxg3 {[%clk 0:01:34.7]}
32... hxg3 {[%clk 0:00:01.5]} 33. a5 {[%clk 0:01:30.5]} 1-0

[Event "Live Chess"]
[Site "Chess.com"]
[Date "2024.06.01"]
[Round "-"]
[White "Richardallis"]
[Black "KeithArkell"]
[Result "0-1"]
[WhiteElo "2044"]
[BlackElo "2500"]
[TimeControl "300"]
[EndTime "11:56:40 PDT"]
[Termination "KeithArkell won by checkmate"]

1. d4 {[%clk 0:04:54.9]} 1... e6 {[%clk 0:04:58.8]} 2. Nd2 {[%clk 0:04:54.7]}
2... c5 {[%clk 0:04:57.5]} 3. c3 {[%clk 0:04:53.4]} 3... cxd4 {[%clk 0:04:56.8]}
4. cxd4 {[%clk 0:04:52.6]} 4... Nf6 {[%clk 0:04:56.7]} 5. a3 {[%clk 0:04:49.9]}
5... b6 {[%clk 0:04:56.1]} 6. e4 {[%clk 0:04:47.4]} 6... Bb7 {[%clk 0:04:55.2]}
7. Bd3 {[%clk 0:04:46.9]} 7... Nc6 {[%clk 0:04:52.8]} 8. Ne2 {[%clk 0:04:45.6]}
8... Be7 {[%clk 0:04:49.9]} 9. O-O {[%clk 0:04:43.5]} 9... O-O {[%clk
0:04:49.1]} 10. b4 {[%clk 0:04:40.4]} 10... a6 {[%clk 0:04:47]} 11. Bb2 {[%clk
0:04:39.3]} 11... Rc8 {[%clk 0:04:46.1]} 12. Rc1 {[%clk 0:04:38.2]} 12... d6
{[%clk 0:04:45.2]} 13. Bb1 {[%clk 0:04:37]} 13... g6 {[%clk 0:04:44]} 14. Nc4
{[%clk 0:04:22.4]} 14... d5 {[%clk 0:04:42.1]} 15. exd5 {[%clk 0:04:17.9]} 15...
Nxd5 {[%clk 0:04:41.3]} 16. Qd2 {[%clk 0:04:12]} 16... Bf6 {[%clk 0:04:40.1]}
17. Ng3 {[%clk 0:04:01.1]} 17... Bg7 {[%clk 0:04:37.5]} 18. Ne4 {[%clk
0:03:58.5]} 18... Rc7 {[%clk 0:04:33.9]} 19. g3 {[%clk 0:03:50.2]} 19... Rd7
{[%clk 0:04:32.8]} 20. f4 {[%clk 0:03:45.4]} 20... Nce7 {[%clk 0:04:29.4]} 21.
Ng5 {[%clk 0:03:36.7]} 21... Nf5 {[%clk 0:04:12]} 22. Ne5 {[%clk 0:03:32.5]}
22... Rc7 {[%clk 0:04:10.2]} 23. Be4 {[%clk 0:03:24.3]} 23... Nf6 {[%clk
0:04:00.7]} 24. Bxb7 {[%clk 0:03:11.3]} 24... Rxb7 {[%clk 0:04:00.6]} 25. Nc6
{[%clk 0:03:04.1]} 25... Qd5 {[%clk 0:03:57.1]} 26. Rc2 {[%clk 0:02:56.3]} 26...
h6 {[%clk 0:03:56]} 27. Nf3 {[%clk 0:02:53.3]} 27... Rc7 {[%clk 0:03:54.8]} 28.
Nce5 {[%clk 0:02:47.5]} 28... Rfc8 {[%clk 0:03:53.2]} 29. Rfc1 {[%clk
0:02:45.2]} 29... Rxc2 {[%clk 0:03:50.7]} 30. Rxc2 {[%clk 0:02:44.1]} 30... Rxc2
{[%clk 0:03:38.6]} 31. Qxc2 {[%clk 0:02:42.8]} 31... Ng4 {[%clk 0:03:09]} 32.
Qc8+ {[%clk 0:02:33.3]} 32... Kh7 {[%clk 0:03:07.4]} 33. h3 {[%clk 0:02:30.4]}
33... Nxe5 {[%clk 0:03:01.7]} 34. Nxe5 {[%clk 0:02:29.7]} 34... Bxe5 {[%clk
0:03:00.9]} 35. dxe5 {[%clk 0:02:29.1]} 35... Qd1+ {[%clk 0:02:59]} 36. Kf2
{[%clk 0:02:27.3]} 36... Qd2+ {[%clk 0:02:58]} 37. Kg1 {[%clk 0:02:24.4]} 37...
Qe3+ {[%clk 0:02:56.5]} 38. Kf1 {[%clk 0:02:20.3]} 38... Qd3+ {[%clk 0:02:55]}
39. Ke1 {[%clk 0:02:14.6]} 39... Nxg3 {[%clk 0:02:45.8]} 40. Qc7 {[%clk
0:02:10.4]} 40... Qe2# {[%clk 0:02:44.5]} 0-1